[Event "*** SCC Grand Prix: Titled Tuesday Blitz"]
[Site "Chess.com"]
[Date "2020.06.02"]
[Round "8"]
[White "RestartingChess"]
[Black "Sam_ChessMood"]
[Result "0-1"]
[WhiteElo "2494"]
[BlackElo "2825"]
[TimeControl "180+1"]
[EndTime "11:37:09 PDT"]
[Termination "Sam_ChessMood won by resignation"]

1. e4 {[%clk 0:03:00.9]} 1... c5 {[%clk 0:02:58.9]} 2. Nf3 {[%clk 0:03:00.8]}
2... d6 {[%clk 0:02:59.3]} 3. Bb5+ {[%clk 0:03:00.1]} 3... Nd7 {[%clk
0:02:58.6]} 4. c4 {[%clk 0:03:00.8]} 4... Nf6 {[%clk 0:02:55.7]} 5. Nc3 {[%clk
0:03:01.3]} 5... e5 {[%clk 0:02:53.4]} 6. d3 {[%clk 0:03:00.6]} 6... Be7 {[%clk
0:02:49.1]} 7. Bg5 {[%clk 0:03:00.7]} 7... O-O {[%clk 0:02:48.7]} 8. Bxd7 {[%clk
0:03:00.6]} 8... Bxd7 {[%clk 0:02:46.7]} 9. Bxf6 {[%clk 0:03:01.1]} 9... Bxf6
{[%clk 0:02:46.8]} 10. Nd5 {[%clk 0:03:02]} 10... g6 {[%clk 0:02:35.5]} 11.
Nxf6+ {[%clk 0:02:57.1]} 11... Qxf6 {[%clk 0:02:35.2]} 12. Qd2 {[%clk
0:02:57.9]} 12... Bg4 {[%clk 0:02:29.4]} 13. Qg5 {[%clk 0:02:52.5]} 13... Qxg5
{[%clk 0:02:27.2]} 14. Nxg5 {[%clk 0:02:52.9]} 14... h6 {[%clk 0:02:14]} 15. h3
{[%clk 0:02:51.3]} 15... Bd7 {[%clk 0:02:11.2]} 16. Nf3 {[%clk 0:02:51.7]} 16...
f5 {[%clk 0:02:11.5]} 17. Ke2 {[%clk 0:02:50.1]} 17... b5 {[%clk 0:02:09.6]} 18.
b3 {[%clk 0:02:49.8]} 18... Kg7 {[%clk 0:01:59.2]} 19. Rhd1 {[%clk 0:02:42.7]}
19... Kf6 {[%clk 0:01:57.8]} 20. Ne1 {[%clk 0:02:38.8]} 20... a5 {[%clk
0:01:56.2]} 21. Nc2 {[%clk 0:02:38.9]} 21... f4 {[%clk 0:01:55.5]} 22. f3 {[%clk
0:02:31.5]} 22... g5 {[%clk 0:01:54.8]} 23. Rdb1 {[%clk 0:02:30.8]} 23... Rfb8
{[%clk 0:01:46]} 24. cxb5 {[%clk 0:02:28.7]} 24... Bxb5 {[%clk 0:01:44]} 25. Na3
{[%clk 0:02:29.6]} 25... Be8 {[%clk 0:01:41.4]} 26. Nc4 {[%clk 0:02:29.7]} 26...
Ke6 {[%clk 0:01:41.9]} 27. Nb2 {[%clk 0:02:18.8]} 27... h5 {[%clk 0:01:41]} 28.
Nd1 {[%clk 0:02:18.9]} 28... Bc6 {[%clk 0:01:39.4]} 29. Nc3 {[%clk 0:02:19.1]}
29... Rb7 {[%clk 0:01:38.4]} 30. Kd2 {[%clk 0:02:13.1]} 30... Rg8 {[%clk
0:01:38.1]} 31. Rh1 {[%clk 0:02:12.2]} 31... Rb4 {[%clk 0:01:34.1]} 32. Rab1
{[%clk 0:01:57.5]} 32... Rg6 {[%clk 0:01:33.2]} 33. Nd1 {[%clk 0:01:37.3]} 33...
Kd7 {[%clk 0:01:20.3]} 34. Nb2 {[%clk 0:01:36.7]} 34... Rb7 {[%clk 0:01:16.4]}
35. Nc4 {[%clk 0:01:36.9]} 35... Ra7 {[%clk 0:01:15.2]} 36. Ke2 {[%clk
0:01:24.6]} 36... Kc7 {[%clk 0:01:15.2]} 37. Kd2 {[%clk 0:01:24.8]} 37... Rg8
{[%clk 0:01:15.2]} 38. Ke2 {[%clk 0:01:21.7]} 38... Bd7 {[%clk 0:01:15.1]} 39.
Nb2 {[%clk 0:01:13.1]} 39... Rb8 {[%clk 0:01:13.9]} 40. Nd1 {[%clk 0:01:11.5]}
40... Kc6 {[%clk 0:01:04.4]} 41. Nc3 {[%clk 0:01:11.8]} 41... Be6 {[%clk
0:01:04.5]} 42. Kf2 {[%clk 0:01:05]} 42... Rg7 {[%clk 0:01:03.2]} 43. Na4 {[%clk
0:00:52.1]} 43... Rh7 {[%clk 0:01:00.9]} 44. Nc3 {[%clk 0:00:52]} 44... Rbh8
{[%clk 0:01:00.8]} 45. Ne2 {[%clk 0:00:44.4]} 45... g4 {[%clk 0:00:58.4]} 46.
hxg4 {[%clk 0:00:45.3]} 46... hxg4 {[%clk 0:00:58.8]} 47. Rxh7 {[%clk
0:00:44.9]} 47... Rxh7 {[%clk 0:00:59.3]} 48. fxg4 {[%clk 0:00:37.6]} 48... Bxg4
{[%clk 0:00:58.7]} 49. Nc3 {[%clk 0:00:38.2]} 49... Be6 {[%clk 0:00:55.7]} 50.
Rc1 {[%clk 0:00:35.8]} 50... Rg7 {[%clk 0:00:54.4]} 51. Rh1 {[%clk 0:00:35.5]}
51... Rg3 {[%clk 0:00:51.1]} 52. Rh6 {[%clk 0:00:32.9]} 52... Rxd3 {[%clk
0:00:50.2]} 53. Ne2 {[%clk 0:00:19.6]} 53... Bg4 {[%clk 0:00:47.5]} 54. Rg6
{[%clk 0:00:19.8]} 54... Bxe2 {[%clk 0:00:46.4]} 55. Kxe2 {[%clk 0:00:20.7]}
55... Re3+ {[%clk 0:00:46.8]} 56. Kd2 {[%clk 0:00:21.6]} 56... Rxe4 {[%clk
0:00:47.2]} 57. Rg8 {[%clk 0:00:21.6]} 57... a4 {[%clk 0:00:46.4]} 58. Kd3
{[%clk 0:00:20.3]} 58... Rd4+ {[%clk 0:00:46]} 59. Kc3 {[%clk 0:00:20.6]} 59...
axb3 {[%clk 0:00:46.4]} 60. axb3 {[%clk 0:00:21.5]} 60... Kd5 {[%clk 0:00:46.2]}
61. Rd8 {[%clk 0:00:21.3]} 61... Ke4 {[%clk 0:00:46.1]} 62. Rg8 {[%clk
0:00:21.7]} 62... Rd3+ {[%clk 0:00:41.5]} 63. Kc4 {[%clk 0:00:22.6]} 63... d5+
{[%clk 0:00:41.3]} 64. Kxc5 {[%clk 0:00:23.3]} 64... Rxb3 {[%clk 0:00:41.2]} 65.
Kd6 {[%clk 0:00:24.2]} 65... Rg3 {[%clk 0:00:38]} 66. Re8 {[%clk 0:00:23.9]}
66... Rg6+ {[%clk 0:00:37.9]} 67. Kc5 {[%clk 0:00:23.8]} 67... Rxg2 {[%clk
0:00:37.9]} 68. Rd8 {[%clk 0:00:23.9]} 68... d4 {[%clk 0:00:37]} 0-1

[Event "*** SCC Grand Prix: Titled Tuesday Blitz"]
[Site "Chess.com"]
[Date "2020.06.02"]
[Round "8"]
[White "malandragem"]
[Black "MirMan90"]
[Result "0-1"]
[WhiteElo "2477"]
[BlackElo "2712"]
[TimeControl "180+1"]
[EndTime "11:37:09 PDT"]
[Termination "MirMan90 won by resignation"]

1. a3 {[%clk 0:03:00.9]} 1... e5 {[%clk 0:02:59.9]} 2. e4 {[%clk 0:03:00.8]}
2... Nf6 {[%clk 0:02:58.3]} 3. Nc3 {[%clk 0:03:01.4]} 3... Bc5 {[%clk
0:02:58.2]} 4. Bc4 {[%clk 0:03:01.9]} 4... d6 {[%clk 0:02:57.1]} 5. d3 {[%clk
0:03:02.2]} 5... a6 {[%clk 0:02:57.2]} 6. f4 {[%clk 0:03:02.1]} 6... Ng4 {[%clk
0:02:46.4]} 7. f5 {[%clk 0:02:26.8]} 7... Nf2 {[%clk 0:02:33.6]} 8. Qh5 {[%clk
0:02:26]} 8... g6 {[%clk 0:02:28.5]} 9. Qh6 {[%clk 0:01:32.6]} 9... Nxh1 {[%clk
0:02:12.1]} 10. Bg5 {[%clk 0:01:32.6]} 10... f6 {[%clk 0:01:49.4]} 11. fxg6
{[%clk 0:01:32.8]} 11... Kd7 {[%clk 0:01:11.4]} 12. g7 {[%clk 0:01:32.8]} 12...
fxg5 {[%clk 0:01:05]} 13. gxh8=Q {[%clk 0:01:21.9]} 13... Qxh8 {[%clk
0:01:04.4]} 14. Nh3 {[%clk 0:01:22.5]} 14... Kc6 {[%clk 0:01:01]} 15. O-O-O
{[%clk 0:01:22.1]} 15... Nf2 {[%clk 0:00:56.4]} 16. Nxf2 {[%clk 0:01:16.3]}
16... Bxf2 {[%clk 0:00:56.4]} 17. Rf1 {[%clk 0:01:16.9]} 17... Be3+ {[%clk
0:00:51.1]} 18. Kb1 {[%clk 0:01:17.3]} 18... Nd7 {[%clk 0:00:47.6]} 19. Nd5
{[%clk 0:01:03.6]} 19... b5 {[%clk 0:00:31.8]} 20. Bb3 {[%clk 0:00:53.5]} 20...
Bc5 {[%clk 0:00:27.6]} 21. Rf7 {[%clk 0:00:53.2]} 21... Bb6 {[%clk 0:00:20]} 22.
Ne7+ {[%clk 0:00:45.8]} 22... Kb7 {[%clk 0:00:20.3]} 23. Bd5+ {[%clk 0:00:46]}
23... Ka7 {[%clk 0:00:18.7]} 24. Nc6+ {[%clk 0:00:45.9]} 24... Kb7 {[%clk
0:00:18.2]} 25. Nxe5+ {[%clk 0:00:31]} 25... Ka7 {[%clk 0:00:18]} 26. Nc6+
{[%clk 0:00:31.3]} 26... Kb7 {[%clk 0:00:18]} 27. Ne5+ {[%clk 0:00:20.6]} 27...
Ka7 {[%clk 0:00:18.3]} 28. Nxd7 {[%clk 0:00:21.1]} 28... Bxd7 {[%clk 0:00:17.7]}
29. Rxd7 {[%clk 0:00:22]} 29... Rf8 {[%clk 0:00:15.9]} 30. Qxh7 {[%clk
0:00:22.4]} 30... Rf1+ {[%clk 0:00:14]} 31. Ka2 {[%clk 0:00:22.7]} 31... Qxh7
{[%clk 0:00:11.3]} 32. Rxh7 {[%clk 0:00:23.6]} 32... Rf2 {[%clk 0:00:11.5]} 33.
g3 {[%clk 0:00:23.6]} 33... Rxc2 {[%clk 0:00:11.4]} 34. h4 {[%clk 0:00:21.2]}
34... gxh4 {[%clk 0:00:11.2]} 35. gxh4 {[%clk 0:00:22.1]} 35... Bd4 {[%clk
0:00:10.9]} 36. Kb1 {[%clk 0:00:20]} 36... Rxb2+ {[%clk 0:00:11.4]} 37. Kc1
{[%clk 0:00:20.5]} 37... Kb6 {[%clk 0:00:12]} 38. h5 {[%clk 0:00:20.5]} 38...
Rh2 {[%clk 0:00:12.2]} 39. Bf7 {[%clk 0:00:18.6]} 39... a5 {[%clk 0:00:12]} 40.
Bg6 {[%clk 0:00:18.5]} 40... b4 {[%clk 0:00:11.9]} 41. axb4 {[%clk 0:00:18.4]}
41... axb4 {[%clk 0:00:11.1]} 42. Rf7 {[%clk 0:00:19.3]} 42... b3 {[%clk
0:00:10.8]} 43. Rf1 {[%clk 0:00:17.5]} 43... Ra2 {[%clk 0:00:10.5]} 44. Rf8
{[%clk 0:00:07.5]} 44... Ra1+ {[%clk 0:00:10.5]} 45. Kd2 {[%clk 0:00:08]} 45...
b2 {[%clk 0:00:11.1]} 46. Rb8+ {[%clk 0:00:07.7]} 46... Ka7 {[%clk 0:00:11.4]}
47. Rxb2 {[%clk 0:00:05.1]} 47... Bxb2 {[%clk 0:00:12.3]} 48. h6 {[%clk
0:00:05.7]} 48... Bc1+ {[%clk 0:00:12.4]} 49. Kc2 {[%clk 0:00:06]} 49... Bxh6
{[%clk 0:00:13.3]} 0-1

[Event "*** SCC Grand Prix: Titled Tuesday Blitz"]
[Site "Chess.com"]
[Date "2020.06.02"]
[Round "8"]
[White "jlandaw"]
[Black "atwalcb"]
[Result "1-0"]
[WhiteElo "2540"]
[BlackElo "2376"]
[TimeControl "180+1"]
[EndTime "11:37:09 PDT"]
[Termination "jlandaw won on time"]

1. e4 {[%clk 0:03:00.9]} 1... d6 {[%clk 0:02:20.8]} 2. Nc3 {[%clk 0:03:00.4]}
2... Nf6 {[%clk 0:02:16.7]} 3. g3 {[%clk 0:03:00.7]} 3... Nbd7 {[%clk 0:02:15]}
4. Bg2 {[%clk 0:03:01.2]} 4... e5 {[%clk 0:02:15.6]} 5. d3 {[%clk 0:03:01.7]}
5... c6 {[%clk 0:02:15]} 6. f4 {[%clk 0:03:02]} 6... Be7 {[%clk 0:02:11.2]} 7.
Nh3 {[%clk 0:03:02.2]} 7... O-O {[%clk 0:02:10.6]} 8. O-O {[%clk 0:03:01.6]}
8... b5 {[%clk 0:02:09.5]} 9. a3 {[%clk 0:03:01.3]} 9... Bb7 {[%clk 0:02:09.3]}
10. f5 {[%clk 0:03:01.5]} 10... d5 {[%clk 0:01:58.2]} 11. g4 {[%clk 0:02:57.3]}
11... dxe4 {[%clk 0:01:44.5]} 12. dxe4 {[%clk 0:02:54.2]} 12... Nc5 {[%clk
0:01:43.9]} 13. Qe2 {[%clk 0:02:48.7]} 13... Nfd7 {[%clk 0:01:28.6]} 14. g5
{[%clk 0:02:46.5]} 14... a5 {[%clk 0:01:18.9]} 15. Qh5 {[%clk 0:02:24.1]} 15...
b4 {[%clk 0:01:04.1]} 16. Ne2 {[%clk 0:02:23.9]} 16... g6 {[%clk 0:00:53.8]} 17.
Qg4 {[%clk 0:01:57.1]} 17... Re8 {[%clk 0:00:44.2]} 18. Be3 {[%clk 0:01:55.9]}
18... Bf8 {[%clk 0:00:30.7]} 19. f6 {[%clk 0:01:23.3]} 19... Ne6 {[%clk
0:00:26.9]} 20. axb4 {[%clk 0:01:21.8]} 20... axb4 {[%clk 0:00:26.3]} 21. Rad1
{[%clk 0:01:21]} 21... Qc7 {[%clk 0:00:23]} 22. Nc1 {[%clk 0:01:18.3]} 22... Nb6
{[%clk 0:00:20.3]} 23. b3 {[%clk 0:01:17.4]} 23... Nd7 {[%clk 0:00:19.7]} 24.
Nd3 {[%clk 0:01:17.2]} 24... Ndc5 {[%clk 0:00:18.4]} 25. Qh4 {[%clk 0:01:04.8]}
25... Nxd3 {[%clk 0:00:17.3]} 26. Rxd3 {[%clk 0:01:05.7]} 26... c5 {[%clk
0:00:15.7]} 27. Nf2 {[%clk 0:01:03.9]} 27... Ba6 {[%clk 0:00:15.7]} 28. Rfd1
{[%clk 0:01:00.5]} 28... Bxd3 {[%clk 0:00:15.7]} 29. Rxd3 {[%clk 0:01:01.4]}
29... Red8 {[%clk 0:00:15.8]} 30. Bh3 {[%clk 0:00:49.2]} 30... Rxd3 {[%clk
0:00:14.5]} 31. Nxd3 {[%clk 0:00:50.1]} 31... Nd8 {[%clk 0:00:12.6]} 32. Qg3
{[%clk 0:00:47]} 32... Ra1+ {[%clk 0:00:12.1]} 33. Bf1 {[%clk 0:00:46.4]} 33...
Nc6 {[%clk 0:00:10.6]} 34. Bxc5 {[%clk 0:00:45.3]} 34... Bxc5+ {[%clk
0:00:09.4]} 35. Nxc5 {[%clk 0:00:46.2]} 35... Qb6 {[%clk 0:00:09.9]} 36. Qf2
{[%clk 0:00:32.9]} 36... Nd4 {[%clk 0:00:09.4]} 37. Nd7 {[%clk 0:00:29.5]} 37...
Qe6 {[%clk 0:00:08.7]} 38. Nc5 {[%clk 0:00:15.1]} 38... Qg4+ {[%clk 0:00:08.2]}
39. Qg2 {[%clk 0:00:15.5]} 39... Nf3+ {[%clk 0:00:08.1]} 40. Kf2 {[%clk
0:00:15.3]} 40... Qxg2+ {[%clk 0:00:03.7]} 41. Kxg2 {[%clk 0:00:16.2]} 41... Nd4
{[%clk 0:00:03.8]} 42. Bd3 {[%clk 0:00:15]} 42... Ra2 {[%clk 0:00:03.8]} 43. Nd7
{[%clk 0:00:12.1]} 43... Nxc2 {[%clk 0:00:03.8]} 44. Nxe5 {[%clk 0:00:12.6]}
44... Nd4+ {[%clk 0:00:03.3]} 45. Kg3 {[%clk 0:00:11.8]} 45... Nxb3 {[%clk
0:00:03.7]} 46. Bc4 {[%clk 0:00:12.3]} 46... Ra3 {[%clk 0:00:03.3]} 47. Bxf7+
{[%clk 0:00:12.1]} 47... Kf8 {[%clk 0:00:02.9]} 48. Bd5 {[%clk 0:00:12.4]} 48...
Nd4+ {[%clk 0:00:03]} 49. Kg2 {[%clk 0:00:12.9]} 49... Ra7 {[%clk 0:00:01.5]}
50. Nf3 {[%clk 0:00:10.7]} 1-0

[Event "*** SCC Grand Prix: Titled Tuesday Blitz"]
[Site "Chess.com"]
[Date "2020.06.02"]
[Round "8"]
[White "VincentKeymer"]
[Black "kingnb"]
[Result "1-0"]
[WhiteElo "2798"]
[BlackElo "2571"]
[TimeControl "180+1"]
[EndTime "11:37:11 PDT"]
[Termination "VincentKeymer won by resignation"]

1. Nf3 {[%clk 0:03:00.9]} 1... Nf6 {[%clk 0:02:24.4]} 2. c4 {[%clk 0:03:00]}
2... g6 {[%clk 0:02:24]} 3. g3 {[%clk 0:02:59.7]} 3... Bg7 {[%clk 0:02:24.3]} 4.
Bg2 {[%clk 0:03:00.6]} 4... O-O {[%clk 0:02:24.6]} 5. O-O {[%clk 0:03:00.7]}
5... d6 {[%clk 0:02:25.5]} 6. d4 {[%clk 0:03:00.6]} 6... c6 {[%clk 0:02:25.4]}
7. Nc3 {[%clk 0:03:00.8]} 7... Qa5 {[%clk 0:02:26]} 8. e4 {[%clk 0:02:57.2]}
8... Qh5 {[%clk 0:02:26]} 9. Ne1 {[%clk 0:02:47.6]} 9... Qxd1 {[%clk 0:02:26.9]}
10. Nxd1 {[%clk 0:02:48.4]} 10... e5 {[%clk 0:02:27]} 11. d5 {[%clk 0:02:47.3]}
11... Na6 {[%clk 0:02:03.9]} 12. Nd3 {[%clk 0:02:45.8]} 12... cxd5 {[%clk
0:01:59.7]} 13. cxd5 {[%clk 0:02:46.7]} 13... Nc5 {[%clk 0:02:00.3]} 14. Nxc5
{[%clk 0:02:39.5]} 14... dxc5 {[%clk 0:02:01.2]} 15. Nc3 {[%clk 0:02:37.8]}
15... b6 {[%clk 0:01:58.2]} 16. a4 {[%clk 0:02:35.7]} 16... a6 {[%clk 0:01:30]}
17. Rd1 {[%clk 0:02:17.5]} 17... Bd7 {[%clk 0:01:24.9]} 18. Be3 {[%clk
0:02:10.9]} 18... Rfc8 {[%clk 0:01:23.1]} 19. h3 {[%clk 0:01:55.4]} 19... Ne8
{[%clk 0:01:17.6]} 20. Bf1 {[%clk 0:01:47.2]} 20... Nd6 {[%clk 0:01:17.2]} 21.
Kh2 {[%clk 0:01:41.1]} 21... Kf8 {[%clk 0:00:55.6]} 22. Bd3 {[%clk 0:01:39.6]}
22... Ke7 {[%clk 0:00:53]} 23. f4 {[%clk 0:01:37.8]} 23... Rab8 {[%clk
0:00:41.9]} 24. Rf1 {[%clk 0:01:14.7]} 24... b5 {[%clk 0:00:29.7]} 25. axb5
{[%clk 0:01:14.6]} 25... axb5 {[%clk 0:00:30.6]} 26. Ra7 {[%clk 0:01:14.2]}
26... c4 {[%clk 0:00:20.5]} 27. Bb1 {[%clk 0:00:57]} 27... b4 {[%clk 0:00:20.9]}
28. Na4 {[%clk 0:00:50.1]} 28... Ra8 {[%clk 0:00:17.7]} 29. Rxa8 {[%clk
0:00:44.6]} 29... Rxa8 {[%clk 0:00:18.6]} 30. Nb6 {[%clk 0:00:44.9]} 30... Ra1
{[%clk 0:00:18.3]} 31. Bc5 {[%clk 0:00:36.1]} 31... exf4 {[%clk 0:00:17.1]} 32.
gxf4 {[%clk 0:00:35.2]} 32... Bxb2 {[%clk 0:00:12]} 33. Bxd6+ {[%clk 0:00:23.9]}
33... Kxd6 {[%clk 0:00:11.8]} 34. Nxc4+ {[%clk 0:00:24.8]} 34... Kc5 {[%clk
0:00:12.5]} 35. Nxb2 {[%clk 0:00:25.3]} 35... Kd4 {[%clk 0:00:12.9]} 36. Kg2
{[%clk 0:00:18.9]} 36... Bb5 {[%clk 0:00:12]} 37. Rc1 {[%clk 0:00:18.1]} 37...
b3 {[%clk 0:00:11.7]} 38. d6 {[%clk 0:00:17.9]} 38... Ra6 {[%clk 0:00:09.9]} 39.
e5 {[%clk 0:00:17.7]} 39... f6 {[%clk 0:00:08.3]} 40. Rd1+ {[%clk 0:00:15.8]}
40... Kc3 {[%clk 0:00:08.7]} 41. Bd3 {[%clk 0:00:16]} 41... Bc6+ {[%clk
0:00:07.9]} 42. Kf2 {[%clk 0:00:15.3]} 42... Ra2 {[%clk 0:00:08.4]} 43. Rc1+
{[%clk 0:00:13.4]} 43... Kd4 {[%clk 0:00:05.8]} 44. Rxc6 {[%clk 0:00:13.1]}
44... Rxb2+ {[%clk 0:00:06.5]} 45. Be2 {[%clk 0:00:13.7]} 45... Rc2 {[%clk
0:00:06.2]} 46. Rb6 {[%clk 0:00:13.6]} 46... Kc5 {[%clk 0:00:06.1]} 47. Rxb3
{[%clk 0:00:13]} 47... fxe5 {[%clk 0:00:05.7]} 48. fxe5 {[%clk 0:00:13.9]} 48...
Rd2 {[%clk 0:00:05.2]} 49. Rd3 {[%clk 0:00:13.7]} 1-0

[Event "*** SCC Grand Prix: Titled Tuesday Blitz"]
[Site "Chess.com"]
[Date "2020.06.02"]
[Round "8"]
[White "DenisQ"]
[Black "MITerryble"]
[Result "1/2-1/2"]
[WhiteElo "2611"]
[BlackElo "2819"]
[TimeControl "180+1"]
[EndTime "11:37:12 PDT"]
[Termination "Game drawn by repetition"]

1. Nf3 {[%clk 0:02:58.1]} 1... Nf6 {[%clk 0:02:59.8]} 2. c4 {[%clk 0:02:58.1]}
2... b6 {[%clk 0:02:59.3]} 3. g3 {[%clk 0:02:57.6]} 3... Bb7 {[%clk 0:02:59.7]}
4. Bg2 {[%clk 0:02:57.8]} 4... g6 {[%clk 0:03:00.6]} 5. O-O {[%clk 0:02:57.8]}
5... Bg7 {[%clk 0:03:00.9]} 6. Nc3 {[%clk 0:02:57.8]} 6... O-O {[%clk
0:03:00.9]} 7. b3 {[%clk 0:02:56.8]} 7... Ne4 {[%clk 0:02:56.1]} 8. Bb2 {[%clk
0:02:55.1]} 8... Nxc3 {[%clk 0:02:48.1]} 9. Bxc3 {[%clk 0:02:56]} 9... Bxc3
{[%clk 0:02:48.2]} 10. dxc3 {[%clk 0:02:56.7]} 10... c5 {[%clk 0:02:49.1]} 11.
Qd2 {[%clk 0:02:54.6]} 11... Kg7 {[%clk 0:02:41.4]} 12. a4 {[%clk 0:02:53.7]}
12... Nc6 {[%clk 0:02:39.6]} 13. Ne5 {[%clk 0:02:52]} 13... Nxe5 {[%clk
0:02:29.2]} 14. Bxb7 {[%clk 0:02:51]} 14... Rb8 {[%clk 0:02:29.4]} 15. Bg2
{[%clk 0:02:50.3]} 15... Qc7 {[%clk 0:02:28]} 16. Rad1 {[%clk 0:02:48.1]} 16...
Rbd8 {[%clk 0:02:23.8]} 17. f4 {[%clk 0:02:42.4]} 17... Nc6 {[%clk 0:02:23.3]}
18. Qe3 {[%clk 0:02:37.2]} 18... e6 {[%clk 0:02:15.3]} 19. Bxc6 {[%clk
0:02:34.4]} 19... dxc6 {[%clk 0:01:48.6]} 20. Kg2 {[%clk 0:02:03.4]} 20... Rd7
{[%clk 0:01:42.2]} 21. Rd3 {[%clk 0:01:41.5]} 21... Rxd3 {[%clk 0:01:34]} 22.
exd3 {[%clk 0:01:42.4]} 22... Rd8 {[%clk 0:01:34.1]} 23. d4 {[%clk 0:01:41.4]}
23... cxd4 {[%clk 0:01:30.6]} 24. cxd4 {[%clk 0:01:42.3]} 24... c5 {[%clk
0:01:30.7]} 25. Qe5+ {[%clk 0:01:33.9]} 25... Qxe5 {[%clk 0:01:30]} 26. dxe5
{[%clk 0:01:34.8]} 26... h6 {[%clk 0:01:18.9]} 27. h4 {[%clk 0:01:29.8]} 27...
h5 {[%clk 0:01:02.3]} 28. Rf3 {[%clk 0:01:26.2]} 28... f6 {[%clk 0:01:01.2]} 29.
exf6+ {[%clk 0:01:21.8]} 29... Kxf6 {[%clk 0:01:02.1]} 30. Re3 {[%clk 0:01:22]}
30... Rd1 {[%clk 0:00:47.8]} 31. Kf3 {[%clk 0:01:21.4]} 31... Rd2 {[%clk
0:00:44.6]} 32. Ke4 {[%clk 0:01:21.1]} 32... Rd4+ {[%clk 0:00:44.2]} 33. Kf3
{[%clk 0:01:21]} 33... Rd2 {[%clk 0:00:43.3]} 34. Ke4 {[%clk 0:01:21.1]} 34...
Rd1 {[%clk 0:00:37.9]} 35. Kf3 {[%clk 0:01:14.9]} 35... Rb1 {[%clk 0:00:25.6]}
36. Ke4 {[%clk 0:01:13.5]} 36... Rb2 {[%clk 0:00:25.2]} 37. Rd3 {[%clk
0:01:11.7]} 37... Ke7 {[%clk 0:00:24.8]} 38. Kf3 {[%clk 0:01:09.5]} 38... Rb1
{[%clk 0:00:21.8]} 39. Ke4 {[%clk 0:01:09.5]} 39... Re1+ {[%clk 0:00:21.6]} 40.
Re3 {[%clk 0:01:09.1]} 40... Rxe3+ {[%clk 0:00:19.7]} 41. Kxe3 {[%clk
0:01:08.9]} 41... Kf6 {[%clk 0:00:20.6]} 42. Ke4 {[%clk 0:01:00.6]} 42... a6
{[%clk 0:00:20.7]} 43. Ke3 {[%clk 0:00:53.3]} 43... Kf5 {[%clk 0:00:21.6]} 44.
Kf3 {[%clk 0:00:53]} 44... e5 {[%clk 0:00:22.5]} 45. fxe5 {[%clk 0:00:45.7]}
45... Kxe5 {[%clk 0:00:23.4]} 46. Ke3 {[%clk 0:00:42.4]} 46... Kf5 {[%clk
0:00:23.4]} 47. Kf3 {[%clk 0:00:42.4]} 47... g5 {[%clk 0:00:12.9]} 48. hxg5
{[%clk 0:00:41.6]} 48... Kxg5 {[%clk 0:00:13.8]} 49. Kf2 {[%clk 0:00:40.3]}
49... Kf6 {[%clk 0:00:13.9]} 50. Kf3 {[%clk 0:00:35]} 50... Kf5 {[%clk
0:00:13.6]} 51. Ke3 {[%clk 0:00:35.2]} 51... Ke5 {[%clk 0:00:12.8]} 52. Kd3
{[%clk 0:00:33.8]} 52... Kf5 {[%clk 0:00:13]} 53. Ke3 {[%clk 0:00:33.9]} 53...
Kg4 {[%clk 0:00:11.8]} 54. Kf2 {[%clk 0:00:33.9]} 54... Kg5 {[%clk 0:00:04.2]}
55. Kf3 {[%clk 0:00:33.4]} 55... Kf5 {[%clk 0:00:04.3]} 56. Ke3 {[%clk
0:00:33.6]} 1/2-1/2

[Event "*** SCC Grand Prix: Titled Tuesday Blitz"]
[Site "Chess.com"]
[Date "2020.06.02"]
[Round "8"]
[White "ajian"]
[Black "nihalsarin"]
[Result "0-1"]
[WhiteElo "2449"]
[BlackElo "2985"]
[TimeControl "180+1"]
[EndTime "11:37:12 PDT"]
[Termination "nihalsarin won by checkmate"]

1. d4 {[%clk 0:03:00.9]} 1... Nf6 {[%clk 0:02:59.7]} 2. c4 {[%clk 0:03:00.9]}
2... e6 {[%clk 0:03:00.1]} 3. Nc3 {[%clk 0:03:01]} 3... Bb4 {[%clk 0:03:00.3]}
4. Qc2 {[%clk 0:03:01.1]} 4... d5 {[%clk 0:03:00.3]} 5. cxd5 {[%clk 0:03:00.5]}
5... exd5 {[%clk 0:03:00.9]} 6. Bg5 {[%clk 0:03:00.2]} 6... h6 {[%clk
0:03:01.3]} 7. Bh4 {[%clk 0:02:59.9]} 7... c5 {[%clk 0:03:01.4]} 8. dxc5 {[%clk
0:03:00.8]} 8... g5 {[%clk 0:03:01.5]} 9. Bg3 {[%clk 0:03:00.5]} 9... Ne4 {[%clk
0:03:02.1]} 10. e3 {[%clk 0:03:00.4]} 10... Qf6 {[%clk 0:02:54.4]} 11. Bb5+
{[%clk 0:02:42.7]} 11... Bd7 {[%clk 0:02:51.2]} 12. Bxd7+ {[%clk 0:02:36]} 12...
Nxd7 {[%clk 0:02:52.1]} 13. Ne2 {[%clk 0:02:36.4]} 13... Rc8 {[%clk 0:02:36.9]}
14. O-O {[%clk 0:02:34.5]} 14... Bxc3 {[%clk 0:02:37]} 15. Nxc3 {[%clk
0:02:31.7]} 15... Nxc3 {[%clk 0:02:36.8]} 16. bxc3 {[%clk 0:02:28.7]} 16... Nxc5
{[%clk 0:02:36.9]} 17. Rfd1 {[%clk 0:02:09.7]} 17... Qe6 {[%clk 0:02:23.9]} 18.
Qd2 {[%clk 0:02:03.1]} 18... O-O {[%clk 0:02:17.6]} 19. Qxd5 {[%clk 0:02:01.9]}
19... Qxd5 {[%clk 0:02:18.5]} 20. Rxd5 {[%clk 0:02:01.9]} 20... Ne4 {[%clk
0:02:19.4]} 21. Rd7 {[%clk 0:01:57.6]} 21... Rxc3 {[%clk 0:02:19.1]} 22. Rxb7
{[%clk 0:01:56.2]} 22... Rfc8 {[%clk 0:02:19.3]} 23. h3 {[%clk 0:01:21.1]} 23...
h5 {[%clk 0:02:05.8]} 24. h4 {[%clk 0:01:11.6]} 24... g4 {[%clk 0:01:54.3]} 25.
Rxa7 {[%clk 0:01:06]} 25... Rc1+ {[%clk 0:01:45.2]} 26. Rxc1 {[%clk 0:01:05.4]}
26... Rxc1+ {[%clk 0:01:46.1]} 27. Kh2 {[%clk 0:01:06]} 27... Nd2 {[%clk
0:01:47]} 28. Bf4 {[%clk 0:00:39.4]} 28... Nf1+ {[%clk 0:01:45.1]} 29. Kg1
{[%clk 0:00:39.3]} 29... Ng3+ {[%clk 0:01:45.2]} 30. Kh2 {[%clk 0:00:38]} 30...
Nf1+ {[%clk 0:01:45.8]} 31. Kg1 {[%clk 0:00:38.1]} 31... Nxe3+ {[%clk
0:01:26.1]} 32. Kh2 {[%clk 0:00:37.8]} 32... Nf1+ {[%clk 0:01:27]} 33. Kg1
{[%clk 0:00:35]} 33... Rb1 {[%clk 0:01:27.9]} 34. a4 {[%clk 0:00:23.1]} 34...
Kg7 {[%clk 0:01:24.6]} 35. a5 {[%clk 0:00:22.6]} 35... Kg6 {[%clk 0:01:25]} 36.
a6 {[%clk 0:00:17.9]} 36... Ng3+ {[%clk 0:01:21.8]} 37. Kh2 {[%clk 0:00:17.8]}
37... Nf1+ {[%clk 0:01:22.7]} 38. Kg1 {[%clk 0:00:18.1]} 38... f6 {[%clk
0:01:21.9]} 39. Rb7 {[%clk 0:00:13.7]} 39... Ra1 {[%clk 0:01:22]} 40. a7 {[%clk
0:00:13.5]} 40... Kf5 {[%clk 0:01:22.3]} 41. Bc1 {[%clk 0:00:09.4]} 41... Nd2
{[%clk 0:00:44.4]} 42. Kh2 {[%clk 0:00:05.5]} 42... g3+ {[%clk 0:00:23.5]} 43.
Kxg3 {[%clk 0:00:04.6]} 43... Ne4+ {[%clk 0:00:23.9]} 44. Kf3 {[%clk 0:00:03.7]}
44... Nd6 {[%clk 0:00:24]} 45. Rd7 {[%clk 0:00:03.3]} 45... Nc4 {[%clk
0:00:20.7]} 46. Be3 {[%clk 0:00:03.1]} 46... Ra3 {[%clk 0:00:20]} 47. Rc7 {[%clk
0:00:02.2]} 47... Ne5+ {[%clk 0:00:11.6]} 48. Kg3 {[%clk 0:00:02.4]} 48... Ng4
{[%clk 0:00:12]} 49. Rc8 {[%clk 0:00:01.8]} 49... Nxe3 {[%clk 0:00:11.9]} 50.
a8=Q {[%clk 0:00:02]} 50... Nf1# {[%clk 0:00:12.2]} 0-1